bitfinex/quotes_SOLUSD_20250612
["timestamp","ask_amount","ask_price","bid_price","bid_amount"]
[1749742770558,25.39413368,158.46,158.42,19.08326708]
[1749742771714,25.39413368,158.46,158.41,19.08326708]
[1749742772325,19.08326708,158.45,158.4,45.60326708]
[1749742773047,6.3108666,158.46,158.4,26.52]
[1749742773253,19.08326708,158.44,158.4,26.52]
[1749742773426,6.31193587,158.43,158.4,26.52]
[1749742773626,25.39520295,158.43,158.37,6.4639]
[1749742773847,25.39520295,158.43,158.36,26.58816708]
[1749742773848,19.08326708,158.41,158.36,26.58816708]
[1749742774054,19.08326708,158.41,158.36,20.60816708]
[1749742774930,19.08326708,158.4,158.36,1.5249]
[1749742775964,25.39645381,158.4,158.36,1.5249]
[1749742776135,25.39645381,158.4,158.36,20.60816708]
[1749742776542,25.39642585,158.4,158.36,20.60816708]
[1749742777184,25.39642585,158.4,158.36,1.5249]
[1749742777382,6.31315877,158.4,158.34,26.52]
[1749742777540,19.08326708,158.38,158.34,26.52]
[1749742777881,19.08326708,158.38,158.33,51.85016708]
[1749742778463,25.39653209,158.4,158.35,19.08326708]
[1749742778844,19.08326708,158.39,158.34,45.60326708]
[1749742779171,19.08326708,158.38,158.34,45.60326708]
[1749742779343,6.31326501,158.4,158.32,1.5345]
[1749742779344,19.08326708,158.37,158.32,1.5345]
[1749742779549,22.09609329,158.4,158.28,6.26432314]
[1749742779550,19.08326708,158.35,158.3,19.08326708]
[1749742779743,19.08326708,158.34,158.3,0.17]
[1749742780066,6.31578311,158.34,158.3,0.17]
[1749742780240,25.39905019,158.34,158.29,61.27642175]
[1749742780677,25.39905019,158.34,158.29,34.75642175]
[1749742780877,19.08326708,158.33,158.29,15.67315467]
[1749742781080,25.39905019,158.34,158.29,34.75642175]
[1749742782165,6.31472594,158.36,158.29,34.75642175]
[1749742782370,19.08326708,158.34,158.29,34.75642175]
[1749742782835,19.08326708,158.33,158.29,15.67315467]
[1749742783033,19.08326708,158.32,158.29,15.67315467]
[1749742783251,19.08326708,158.3,158.29,15.67315467]
[1749742784259,6.31552355,158.34,158.29,34.75642175]
[1749742784467,175.1,158.35,158.31,19.08326708]
[1749742784687,149.1,158.35,158.33,19.08326708]
[1749742784976,149.1,158.35,158.32,19.08326708]
[1749742785189,50.55456142,158.4,158.34,19.08326708]
[1749742785482,25.15805043,158.4,158.37,19.08326708]
[1749742785676,31.47133686,158.4,158.36,19.08326708]
[1749742785976,50.55460394,158.4,158.35,19.08326708]
[1749742786174,31.47133686,158.4,158.36,19.08326708]
[1749742786350,25.15805043,158.4,158.37,19.08326708]
[1749742786677,50.55454092,158.4,158.36,19.08326708]
[1749742786843,50.55454092,158.4,158.35,19.08326708]
[1749742787044,25.15805043,158.4,158.37,19.08326708]
[1749742787246,25.15805043,158.4,158.36,31.88021884]
[1749742787247,31.4712358,158.4,158.36,31.88021884]
[1749742787447,25.15805043,158.4,158.36,31.88021884]
[1749742787652,181.41286229,158.41,158.33,6.2762]
[1749742787653,175.1,158.41,158.38,31.88021884]
[1749742787976,38.19223968,158.43,158.38,31.88021884]
[1749742788174,64.19223968,158.43,158.38,31.88021884]
[1749742791302,6.31273278,158.41,158.37,31.88021884]
[1749742791801,31.88021884,158.45,158.4,31.88021884]
[1749742791983,149.1,158.46,158.44,31.88021884]
[1749742792290,32.31044024,158.47,158.41,26.52]
[1749742792471,64.19065908,158.47,158.43,31.88021884]
[1749742792789,38.19028604,158.48,158.44,31.88021884]
[1749742793157,6.3100672,158.48,158.45,31.88021884]
[1749742793583,6.30875023,158.51,158.47,31.88021884]
[1749742794589,31.88021884,158.5,158.44,26.52]
[1749742794795,31.88021884,158.5,158.45,31.88021884]
[1749742794972,31.88021884,158.5,158.46,31.88021884]
[1749742795901,38.18976518,158.49,158.45,31.88021884]
[1749742796683,6.30954634,158.49,158.46,31.88021884]
[1749742797188,6.30954634,158.49,158.45,31.88021884]
[1749742798283,31.88021884,158.48,158.44,26.5]
[1749742798484,31.88021884,158.48,158.43,31.88021884]
[1749742798690,53.96363103,158.49,158.44,31.88021884]
[1749742800400,6.30921228,158.5,158.48,31.88021884]
[1749742800578,8.62020901,158.51,158.48,31.88021884]
[1749742800770,8.62015962,158.51,158.48,31.88021884]
[1749742800971,8.62002212,158.51,158.47,31.88021884]
[1749742801169,2.31122301,158.5,158.47,31.88021884]
[1749742801366,2.31125737,158.5,158.47,31.88021884]
[1749742801594,6.308806,158.51,158.48,31.88021884]
[1749742801997,38.18902484,158.51,158.46,1.5417]
[1749742802300,38.19056149,158.47,158.42,1.5335]
[1749742802505,38.19056149,158.47,158.42,33.41371884]
[1749742804181,38.19056149,158.47,158.43,31.88021884]
[1749742804387,6.31034265,158.47,158.43,31.88021884]
[1749742805978,38.19056149,158.47,158.43,31.88021884]
[1749742806278,57.88021884,158.46,158.4,6.6213]
[1749742806586,57.88021884,158.46,158.38,20.17244886]
[1749742806587,26.0,158.46,158.43,31.88021884]
[1749742806778,6.31034265,158.47,158.43,31.88021884]
[1749742807207,8.62110973,158.47,158.43,31.88021884]
[1749742807415,6.31034265,158.47,158.43,31.88021884]
[1749742807699,8.62108298,158.47,158.43,31.88021884]
[1749742808084,8.62109137,158.47,158.43,31.88021884]
[1749742808482,2.31090086,158.47,158.45,31.88021884]
[1749742808688,6.30987309,158.49,158.46,31.88021884]
[1749742808872,8.61985672,158.51,158.47,31.88021884]
[1749742809102,2.31110649,158.5,158.47,31.88021884]
[1749742809296,2.31116783,158.49,158.47,19.10041643]
[1749742809496,2.31116783,158.5,158.47,19.10041643]
[1749742809811,32.30875023,158.51,158.47,19.10041643]
[1749742809976,51.40916666,158.51,158.47,19.10041643]
[1749742810304,32.30875023,158.51,158.47,19.10041643]
[1749742811005,51.40916666,158.51,158.47,19.10041643]
[1749742811188,51.40916666,158.51,158.46,19.10041643]
[1749742811696,51.40916666,158.51,158.39,7.9452]
[1749742811697,19.10041643,158.47,158.39,7.9452]
[1749742811906,19.10041643,158.46,158.41,19.10041643]
[1749742812208,6.31113916,158.45,158.42,19.10041643]
[1749742812388,19.10041643,158.47,158.42,19.10041643]
[1749742812604,25.41091335,158.47,158.42,19.10041643]
[1749742812917,19.10041643,158.44,158.39,7.9452]
[1749742813117,19.10041643,158.43,158.39,1.5492]
[1749742813306,31.87082747,158.43,158.39,33.42002747]
[1749742813511,31.87082747,158.43,158.39,1.5492]
[1749742813717,31.87082747,158.43,158.39,33.42002747]
[1749742814240,31.87082747,158.44,158.39,33.42002747]
[1749742814534,149.1,158.46,158.43,31.87082747]
[1749742814699,149.1,158.46,158.39,1.5492]
[1749742814700,149.1,158.46,158.45,31.87082747]
[1749742815299,149.1,158.46,158.42,32.6969]
[1749742815512,149.1,158.46,158.45,31.87082747]
[1749742816222,149.1,158.46,158.45,58.37082747]
[1749742817140,149.1,158.46,158.39,1.5492]
[1749742817141,57.87082747,158.46,158.39,1.5492]
[1749742817510,31.87082747,158.44,158.39,33.42002747]
[1749742817703,31.87082747,158.44,158.39,59.90002747]
[1749742818301,6.31113916,158.45,158.42,31.87082747]
[1749742820233,38.18156835,158.46,158.41,58.35082747]
[1749742820436,38.18156835,158.46,158.42,31.87082747]
[1749742821611,149.1,158.47,158.44,31.87082747]
[1749742821824,26.0,158.49,158.46,31.87082747]
[1749742822039,26.0,158.49,158.45,58.35082747]
[1749742822221,38.18077194,158.48,158.45,26.48]
[1749742822420,38.18077194,158.48,158.43,58.35082747]
[1749742822828,6.30994447,158.48,158.44,31.87082747]
[1749742824633,38.18077194,158.48,158.43,58.35082747]
[1749742825139,31.87082747,158.46,158.43,26.48]
[1749742825316,31.87082747,158.45,158.4,31.87082747]
[1749742825513,171.18480565,158.48,158.43,31.87082747]
[1749742825514,187.28077194,158.48,158.43,31.87082747]
[1749742826033,149.1,158.48,158.45,31.87082747]
[1749742826410,149.1,158.48,158.44,31.87082747]
[1749742826720,155.4099848,158.48,158.44,31.87082747]
[1749742826924,155.4099848,158.48,158.45,31.87082747]
[1749742827128,149.1,158.48,158.47,31.87082747]
[1749742827316,6.30938236,158.5,158.47,31.87082747]
[1749742827730,6.30938236,158.5,158.46,31.87082747]
[1749742828439,32.30889334,158.51,158.47,31.87082747]
[1749742829149,31.87082747,158.5,158.45,58.35082747]
[1749742829513,32.30889334,158.51,158.47,31.87082747]
[1749742829937,32.30889334,158.51,158.48,31.87082747]
[1749742830313,32.30889334,158.51,158.47,58.35082747]
[1749742831040,26.0,158.51,158.48,31.87082747]
[1749742831242,36.34153429,158.58,158.46,1.5919]
[1749742831243,6.30636312,158.57,158.5,31.87082747]
[1749742831449,31.87082747,158.56,158.52,31.87082747]
[1749742831620,31.87082747,158.56,158.51,31.87082747]
[1749742831959,31.87082747,158.52,158.47,31.87082747]
[1749742832120,26.0,158.53,158.48,26.48]
[1749742832309,31.87082747,158.52,158.48,26.48]
[1749742832922,31.87082747,158.5,158.46,1.5919]
[1749742833130,31.87082747,158.5,158.46,26.48]
[1749742834543,31.87082747,158.48,158.43,31.87082747]
[1749742834719,31.87082747,158.48,158.43,58.35082747]
[1749742834925,6.31074088,158.46,158.42,33.39972747]
[1749742835142,6.31048435,158.47,158.43,31.87082747]
[1749742835340,6.31048435,158.47,158.43,58.35082747]
[1749742835653,38.18131182,158.47,158.42,59.87972747]
[1749742836021,31.87082747,158.46,158.42,28.0089]
[1749742836436,31.87082747,158.46,158.4,6.2007]
[1749742836437,31.87082747,158.45,158.4,38.07152747]
[1749742836748,31.87082747,158.46,158.41,58.35082747]
[1749742837126,38.18193676,158.46,158.41,58.35082747]
[1749742837643,38.18193676,158.46,158.41,50.85082747]
[1749742839042,38.18193676,158.46,158.4,6.2007]
[1749742839043,31.87082747,158.45,158.4,38.07152747]
[1749742839240,31.87082747,158.45,158.4,58.35082747]
[1749742839637,6.31110929,158.46,158.4,58.35082747]
[1749742839638,38.18193676,158.46,158.41,31.87082747]
[1749742840152,31.87082747,158.44,158.38,1.5002]
[1749742840334,31.87082747,158.43,158.39,26.48]
[1749742840532,48.08796149,158.46,158.39,26.48]
[1749742840533,31.87082747,158.44,158.39,58.35082747]
[1749742840751,48.08796149,158.46,158.38,1.5002]
[1749742840752,31.87082747,158.43,158.38,1.5002]
[1749742840929,31.87082747,158.42,158.38,1.5002]
[1749742841135,38.18347929,158.42,158.38,1.5002]
[1749742841662,31.87082747,158.41,158.36,38.01322747]
[1749742841866,31.87082747,158.41,158.37,26.48]
[1749742842049,38.18347929,158.42,158.37,58.35082747]
[1749742842610,31.87082747,158.41,158.37,58.35082747]
[1749742843144,38.18347929,158.42,158.37,31.87082747]
[1749742843339,38.18347929,158.42,158.37,58.35082747]
[1749742844667,26.0,158.42,158.38,31.87082747]
[1749742844834,57.87082747,158.44,158.37,26.48]
[1749742845162,26.0,158.44,158.39,31.87082747]
[1749742845340,64.18248015,158.44,158.39,58.35082747]
[1749742848061,64.18248015,158.44,158.39,26.48]
[1749742848362,64.18248015,158.44,158.39,58.35082747]
[1749742848734,31.87082747,158.42,158.39,26.48]
[1749742848950,31.87082747,158.42,158.37,31.87082747]
[1749742849155,31.87082747,158.42,158.38,26.48]
[1749742850263,38.1832539,158.42,158.38,26.48]
[1749742851578,38.1832539,158.42,158.37,58.35082747]
[1749742853283,25.43653703,158.42,158.37,45.6041106]
[1749742853661,25.43653703,158.42,158.37,26.48]
[1749742853662,19.1241106,158.4,158.37,26.48]
[1749742854073,19.1241106,158.41,158.37,26.48]
[1749742854270,25.43653703,158.42,158.37,45.6041106]
[1749742854672,6.31206419,158.43,158.38,19.1241106]
[1749742854860,26.0,158.44,158.39,19.1241106]
[1749742854861,51.43581613,158.44,158.39,19.1241106]
[1749742855061,32.31170553,158.44,158.39,19.1241106]
[1749742855377,8.1297,158.49,158.43,19.1241106]
[1749742855378,6.30994447,158.48,158.43,19.1241106]
[1749742855579,149.1,158.49,158.45,19.1241106]
[1749742855766,149.1,158.49,158.46,19.1241106]
[1749742855965,155.4095951,158.49,158.45,45.5841106]
[1749742856657,19.1241106,158.48,158.43,26.46]
[1749742857080,19.1241106,158.48,158.43,45.5841106]
[1749742857284,31.85100008,158.48,158.43,58.31100008]
[1749742857583,38.16134273,158.47,158.43,26.46]
[1749742858360,38.16134273,158.47,158.44,0.16]
[1749742861282,31.85100008,158.45,158.44,0.16]
[1749742862668,38.16213924,158.45,158.44,0.16]
[1749742866283,26.0,158.46,158.44,0.16]
[1749742866483,32.31083269,158.46,158.44,0.16]
[1749742866667,31.85100008,158.45,158.44,0.16]
[1749742867375,32.13532322,158.45,158.44,0.16]
[1749742868285,38.44646238,158.45,158.44,0.16]
[1749742868591,187.54646238,158.45,158.44,0.16]
[1749742869585,26.0,158.42,158.39,0.0632]
[1749742870371,32.3124066,158.42,158.39,0.0632]
[1749742870586,32.3124066,158.42,158.4,3.09]
[1749742872777,64.16340668,158.42,158.4,3.09]
[1749742873571,31.85100008,158.41,158.4,3.09]
[1749742874977,38.16373286,158.41,158.4,3.09]
[1749742875499,26.0,158.42,158.4,3.09]
[1749742875672,57.85100008,158.42,158.4,3.09]
[1749742875873,64.16349723,158.42,158.4,3.09]
[1749742876375,31.85100008,158.41,158.4,3.09]
[1749742877200,38.448056,158.41,158.4,3.09]
[1749742877408,57.09770486,158.41,158.4,3.09]
[1749742877579,57.09770486,158.41,158.39,0.0632]
[1749742877902,57.85100008,158.4,158.39,0.0632]
[1749742878683,60.15881864,158.4,158.39,0.0632]
[1749742879089,60.15916097,158.4,158.39,0.0632]
[1749742879311,51.44970355,158.4,158.39,0.0632]
[1749742879679,72.89449459,158.4,158.39,0.0632]
[1749742879891,72.89450613,158.4,158.39,0.0632]
[1749742880210,91.82832644,158.4,158.39,0.0632]
[1749742880795,91.8281714,158.4,158.39,0.0632]
[1749742880999,91.82820482,158.4,158.39,0.0632]
[1749742881394,54.04208729,158.4,158.39,0.0632]
[1749742881586,51.73402669,158.4,158.39,0.0632]
[1749742881786,53.55551529,158.4,158.39,0.0632]
[1749742882085,32.59745445,158.4,158.39,0.0632]
[1749742882392,183.53066637,158.42,158.39,0.0632]
[1749742882393,149.1,158.42,158.39,0.0632]
[1749742882604,155.41249406,158.42,158.39,19.19977224]
[1749742882812,6.31210575,158.43,158.4,19.13657224]
[1749742883191,149.1,158.46,158.42,19.13657224]
[1749742883393,149.1,158.46,158.43,19.13657224]
[1749742883394,155.41086233,158.46,158.43,19.13657224]
[1749742883606,149.1,158.46,158.44,19.13657224]
[1749742883939,155.41080268,158.46,158.43,19.13657224]
[1749742884403,149.1,158.46,158.43,19.13657224]
[1749742884710,32.31007514,158.48,158.44,19.13657224]
[1749742884881,6.31007514,158.48,158.44,19.13657224]
[1749742885705,25.44664738,158.48,158.43,19.13657224]
[1749742886203,6.31007514,158.48,158.44,19.13657224]
[1749742886382,6.31007514,158.48,158.45,19.13657224]
[1749742886586,6.31007514,158.48,158.44,19.13657224]
[1749742887301,32.30965753,158.49,158.45,19.13657224]
[1749742887502,6.30965753,158.49,158.46,19.13657224]
[1749742887931,6.309249,158.5,158.46,19.13657224]
[1749742888132,32.30889218,158.51,158.47,19.13657224]
[1749742889010,26.0,158.53,158.49,19.13657224]
[1749742889211,25.44412869,158.54,158.49,19.13657224]
[1749742889417,6.30835225,158.52,158.48,19.13657224]
[1749742889819,6.30676084,158.56,158.47,28.0928]
[1749742890009,6.30676084,158.56,158.53,19.13657224]
[1749742890210,6.30676084,158.56,158.49,6.1067]
[1749742890931,19.13657224,158.53,158.49,6.1067]
[1749742891135,19.13657224,158.52,158.47,47.22937224]
[1749742891317,19.13657224,158.5,158.47,1.6528]
[1749742891521,6.30944654,158.5,158.47,1.6528]
[1749742891718,6.30835225,158.52,158.47,20.78937224]
[1749742891917,26.0,158.53,158.49,19.13657224]
[1749742892140,6.30804968,158.53,158.49,19.13657224]
[1749742892636,25.44462192,158.53,158.48,19.13657224]
[1749742893723,6.30804968,158.53,158.49,19.13657224]
[1749742897420,6.30804968,158.53,158.5,19.13657224]
[1749742898429,6.30804968,158.53,158.47,1.6528]
[1749742898628,6.30804968,158.53,158.49,19.13657224]
[1749742900618,6.30804968,158.53,158.5,19.13657224]
[1749742901237,6.30804968,158.53,158.47,1.6528]
[1749742901429,6.30804968,158.53,158.5,19.13657224]
[1749742901824,32.30767158,158.54,158.47,1.6528]
[1749742902036,32.30767158,158.54,158.5,19.13657224]
[1749742903634,6.30767158,158.54,158.5,19.13657224]
[1749742903942,6.30767158,158.54,158.5,45.55657224]
[1749742904152,6.30728092,158.55,158.52,19.13657224]
[1749742904916,6.30728092,158.55,158.51,19.13657224]
[1749742906152,6.30728092,158.55,158.52,19.13657224]
[1749742908338,32.30688072,158.56,158.54,19.13657224]
[1749742909025,149.1,158.57,158.55,19.13657224]
[1749742909749,6.30622575,158.58,158.55,19.13657224]
[1749742910129,13.52092695,158.59,158.57,19.13657224]
[1749742910450,6.30373325,158.64,158.59,1.5137]
[1749742910655,6.30373325,158.64,158.62,19.13657224]
[1749742910859,6.30373325,158.64,158.61,19.13657224]
[1749742911240,6.30373325,158.64,158.6,26.42]
[1749742911549,6.30327553,158.65,158.61,19.13657224]
[1749742911930,6.30327553,158.65,158.6,26.42]
[1749742911931,6.30327553,158.65,158.62,19.13657224]
[1749742912128,6.30327553,158.65,158.6,26.42]
[1749742912343,25.43984777,158.65,158.6,45.55657224]
[1749742913257,6.30327553,158.65,158.61,19.13657224]
[1749742914456,25.43984777,158.65,158.61,19.13657224]
[1749742915251,6.30327553,158.65,158.61,19.13657224]
[1749742918353,6.30327553,158.65,158.63,19.13657224]
[1749742918549,6.30291846,158.66,158.63,19.13657224]
[1749742918753,6.30291846,158.66,158.62,19.13657224]
[1749742918950,6.30291846,158.66,158.6,26.42]
[1749742918951,6.30291846,158.66,158.63,19.13657224]
[1749742919659,6.30291846,158.66,158.64,19.13657224]
[1749742919863,175.1,158.68,158.64,19.13657224]
[1749742920039,155.40209955,158.68,158.65,19.13657224]
[1749742920240,155.40209955,158.68,158.66,19.13657224]
[1749742920654,155.40209955,158.68,158.65,19.13657224]
[1749742921967,19.13657224,158.66,158.62,19.13657224]
[1749742922266,19.13657224,158.66,158.63,26.4]
[1749742922566,19.13657224,158.67,158.63,26.4]
[1749742922746,155.40209955,158.68,158.65,19.13657224]
[1749742922946,6.30160971,158.69,158.66,19.13657224]
[1749742923273,45.13657224,158.7,158.67,19.13657224]
[1749742923274,6.30134009,158.7,158.67,19.13657224]
[1749742923444,0.8668992,158.71,158.69,19.13657224]
[1749742923647,0.8668992,158.71,158.7,19.13657224]
[1749742925267,0.8668992,158.71,158.7,20.80317224]
[1749742927250,0.8668992,158.71,158.7,39.4528211]
[1749742927574,0.8668992,158.71,158.7,65.8328211]
[1749742928561,0.8668992,158.71,158.7,47.18317224]
[1749742929353,0.8668992,158.71,158.64,19.13657224]
[1749742929545,7.16793047,158.71,158.68,19.13657224]
[1749742929770,19.13657224,158.7,158.65,20.63907224]
[1749742929960,6.3015943,158.69,158.66,26.38]
[1749742930380,6.3015943,158.69,158.65,1.5025]
[1749742930672,6.3015943,158.69,158.63,19.13657224]
[1749742930673,19.13657224,158.67,158.63,19.13657224]
[1749742930868,19.13657224,158.67,158.64,26.38]
[1749742931269,31.77236904,158.67,158.64,26.38]
[1749742931481,31.77236904,158.66,158.62,26.38]
[1749742931667,31.77236904,158.66,158.62,58.15236904]
[1749742931853,31.77236904,158.67,158.63,31.77236904]
[1749742932047,31.77236904,158.67,158.62,58.15236904]
[1749742933661,31.77236904,158.66,158.62,58.15236904]
[1749742933861,38.07553422,158.66,158.62,58.15236904]
[1749742934057,6.30316518,158.66,158.62,58.15236904]
[1749742935467,38.07484864,158.67,158.62,58.15236904]
[1749742935666,38.07356626,158.7,158.65,31.77236904]
[1749742935879,6.30199142,158.68,158.65,58.15236904]
[1749742936203,6.30199142,158.68,158.65,26.38]
[1749742936523,38.07436046,158.68,158.65,26.38]
[1749742937285,6.30199142,158.68,158.65,26.38]
[1749742937786,31.77236904,158.67,158.65,26.38]
[1749742938082,6.30278583,158.66,158.63,26.38]
[1749742938583,31.77236904,158.64,158.57,27.9812]
[1749742938784,31.77236904,158.61,158.57,59.75356904]
[1749742939080,31.77236904,158.61,158.57,33.37356904]
[1749742939287,26.28432314,158.65,158.58,26.38]
[1749742939487,31.77236904,158.62,158.58,58.15236904]
[1749742939786,31.77236904,158.62,158.59,26.38]
[1749742940090,38.07753927,158.6,158.55,31.77236904]
[1749742940280,31.77236904,158.59,158.56,26.38]
[1749742940681,31.77236904,158.59,158.55,26.38]
[1749742940903,31.77236904,158.57,158.53,1.5071]
[1749742941273,31.77236904,158.56,158.5,6.3107]
[1749742941506,31.77236904,158.56,158.52,26.38]
[1749742941700,31.77236904,158.55,158.5,38.08306904]
[1749742941875,31.77236904,158.55,158.52,26.38]
[1749742942191,38.07963659,158.55,158.52,26.38]
[1749742942385,38.07963659,158.55,158.5,6.3107]
[1749742942568,31.77236904,158.54,158.49,33.27606904]
[1749742942774,31.77236904,158.53,158.5,26.38]
[1749742943289,31.77236904,158.54,158.49,33.27606904]
[1749742943694,31.77236904,158.54,158.5,26.38]
[1749742944402,38.08018925,158.54,158.5,26.38]
[1749742944578,15.76531216,158.58,158.5,31.77236904]
[1749742944776,15.76531216,158.58,158.51,31.77236904]
[1749742944974,31.77236904,158.56,158.51,31.77236904]
[1749742945894,31.77236904,158.56,158.52,31.77236904]
[1749742946084,0.28432314,158.58,158.52,31.77236904]
[1749742946281,0.28432314,158.58,158.54,31.77236904]
[1749742946282,6.30596544,158.58,158.54,31.77236904]
[1749742946491,38.07833448,158.58,158.53,58.15236904]
[1749742947372,6.30596544,158.58,158.53,58.15236904]
[1749742947577,38.07833448,158.58,158.53,58.15236904]
[1749742947878,31.77236904,158.57,158.53,26.38]
[1749742949174,38.07895868,158.57,158.53,26.38]
[1749742950203,31.77236904,158.56,158.53,26.38]
[1749742951212,38.07895868,158.57,158.53,26.38]
[1749742951389,190.86406996,158.59,158.53,45.46926355]
[1749742951390,6.30610523,158.58,158.53,45.46926355]
[1749742951699,19.08926355,158.57,158.53,45.46926355]
[1749742952087,25.39536878,158.58,158.53,45.46926355]
[1749742952285,19.08926355,158.58,158.53,45.46926355]
[1749742952486,200.49497851,158.59,158.54,19.08926355]
[1749742952822,149.1,158.59,158.56,19.08926355]
[1749742953109,25.39337048,158.63,158.56,26.38]
[1749742953277,19.08926355,158.62,158.56,26.38]
[1749742953485,19.08926355,158.62,158.57,19.08926355]
[1749742953810,19.08926355,158.62,158.56,26.38]
[1749742953811,19.08926355,158.6,158.56,26.38]
[1749742954174,19.08926355,158.62,158.58,19.08926355]
[1749742955188,19.08926355,158.62,158.57,19.08926355]
[1749742955398,25.39403626,158.61,158.56,45.46926355]
[1749742957607,26.0,158.63,158.56,45.46926355]
[1749742957608,19.08926355,158.62,158.58,19.08926355]
[1749742957808,45.08926355,158.63,158.58,19.08926355]
[1749742957992,19.08926355,158.62,158.58,19.08926355]
[1749742958311,19.08926355,158.62,158.56,26.38]
[1749742958495,19.08926355,158.61,158.56,45.46926355]
[1749742959212,19.08926355,158.61,158.57,19.08926355]
[1749742959710,19.08926355,158.62,158.57,19.08926355]
[1749742960115,25.39368799,158.62,158.57,19.08926355]
[1749742960287,19.08926355,158.62,158.58,19.08926355]
[1749742960489,51.3933747,158.63,158.58,19.08926355]
[1749742961117,19.08926355,158.62,158.57,19.08926355]
[1749742961524,25.39368146,158.62,158.57,19.08926355]
[1749742961818,19.08926355,158.62,158.57,19.08926355]
[1749742962196,25.39366477,158.62,158.57,19.08926355]
[1749742962705,25.39366477,158.62,158.56,47.13546355]
[1749742962706,19.08926355,158.61,158.56,47.13546355]
[1749742963516,25.39366477,158.62,158.57,19.08926355]
[1749742964239,6.30440122,158.62,158.57,19.08926355]
[1749742964445,25.39366477,158.62,158.57,19.08926355]
[1749742965309,19.08926355,158.61,158.56,47.13546355]
[1749742965733,19.08926355,158.6,158.56,26.36]
[1749742966033,19.08926355,158.61,158.56,45.44926355]
[1749742966214,25.39430848,158.61,158.56,45.44926355]
[1749742966568,25.39430848,158.61,158.56,26.36]
[1749742966733,19.08926355,158.6,158.55,19.08926355]
[1749742966917,19.08926355,158.6,158.55,45.44926355]
[1749742968025,19.08926355,158.59,158.55,26.36]
[1749742968234,19.08926355,158.59,158.52,46.25164886]
[1749742968235,19.08926355,158.56,158.52,1.602]
[1749742968438,19.08926355,158.56,158.51,19.08926355]
[1749742968617,19.08926355,158.54,158.51,26.36]
[1749742968964,19.08926355,158.52,158.48,1.5938]
[1749742969243,19.08926355,158.56,158.45,6.4028]
[1749742969244,19.08926355,158.5,158.45,25.49206355]
[1749742969415,19.08926355,158.48,158.44,1.5938]
[1749742969610,19.08926355,158.48,158.45,26.36]
[1749742969813,19.08926355,158.48,158.44,1.5938]
[1749742970049,19.08926355,158.47,158.43,26.36]
[1749742970339,25.39943076,158.48,158.43,45.44926355]
[1749742970855,25.39943076,158.48,158.43,19.08926355]
[1749742971015,25.39943076,158.48,158.43,45.46926355]
[1749742971345,38.16131,158.48,158.43,58.23114279]
[1749742972750,38.16079291,158.49,158.44,31.85114279]
[1749742973432,38.16079291,158.49,158.44,58.21114279]
[1749742974618,31.85114279,158.48,158.44,58.21114279]
[1749742975344,38.16079291,158.49,158.44,58.21114279]
[1749742975937,31.85114279,158.48,158.44,26.36]
[1749742977065,149.1,158.53,158.47,31.85114279]
[1749742977235,155.40807516,158.53,158.5,31.85114279]
[1749742977618,155.40807516,158.53,158.49,31.85114279]
[1749742977834,155.40807516,158.53,158.48,26.38]
[1749742978034,155.40807516,158.53,158.49,31.85114279]
[1749742979949,149.1,158.53,158.49,31.85114279]
[1749742980121,149.1,158.53,158.51,31.85114279]
[1749742980322,149.1,158.58,158.51,31.85114279]
[1749742980526,179.52739437,158.59,158.55,31.85114279]
[1749742980850,205.52739437,158.59,158.55,31.85114279]
[1749742981161,24.12147099,158.59,158.54,26.38]
[1749742981331,24.12147099,158.59,158.57,31.85114279]
[1749742981960,155.40411948,158.63,158.58,31.85114279]
[1749742982125,155.40411948,158.63,158.59,31.85114279]
[1749742982330,181.40411948,158.63,158.59,31.85114279]
[1749742982531,213.25526227,158.63,158.58,31.85114279]
[1749742982730,31.85114279,158.6,158.57,26.38]
[1749742982931,31.85114279,158.6,158.55,58.21114279]
[1749742983133,31.85114279,158.58,158.53,31.85114279]
[1749742983336,31.85114279,158.58,158.53,58.21114279]
[1749742983935,6.30556781,158.59,158.55,31.85114279]
[1749742984854,181.40528383,158.6,158.57,31.85114279]
[1749742985628,181.40528383,158.6,158.55,26.36]
[1749742985828,181.40528383,158.6,158.56,31.85114279]
[1749742986035,181.40528383,158.6,158.57,31.85114279]
[1749742986249,181.40528383,158.6,158.56,31.85114279]
[1749742987957,213.25642662,158.6,158.55,26.36]
[1749742988163,213.25642662,158.6,158.56,31.85114279]
[1749742988742,31.85114279,158.59,158.54,58.21114279]
[1749742989049,31.85114279,158.58,158.5,20.24104886]
[1749742989246,31.85114279,158.58,158.53,31.85114279]
[1749742989756,31.85114279,158.58,158.53,58.21114279]
[1749742990478,6.30636312,158.57,158.53,58.21114279]